bitfinex-derivatives/quotes_ETHF0:USTF0_20250410
["timestamp","ask_amount","ask_price","bid_price","bid_amount"]
[1744299813277,4.53584,1507.0,1506.9,1.08946617]
[1744299813866,1.3283,1506.7,1506.6,3.2078]
[1744299814173,4.53601,1506.8,1506.7,1.08946617]
[1744299814469,6.52767,1507.2,1506.6,3.2078]
[1744299814671,1.32809,1507.0,1506.6,6.52876]
[1744299814865,1.32809,1507.0,1506.8,4.53593]
[1744299815063,1.32804,1507.0,1506.9,1.08946617]
[1744299815468,6.52672,1507.6,1506.9,8.32031]
[1744299815673,6.63691,1507.8,1506.6,101.283]
[1744299815674,1.32786,1507.2,1507.1,3.2078]
[1744299816078,4.53566,1507.2,1507.1,1.08946617]
[1744299816578,1.32848,1506.5,1506.4,3.2078]
[1744299816975,1.32892,1506.0,1505.9,3.2078]
[1744299817273,1.32901,1505.9,1505.8,3.2078]
[1744299817475,3.32279,1505.8,1505.5,3.2078]
[1744299817678,1.32936,1505.5,1505.4,101.264]
[1744299817983,1.32936,1505.5,1505.4,10.0292]
[1744299818173,0.00997008,1506.0,1505.4,18.35283]
[1744299818368,0.00997008,1506.0,1505.8,1.32902]
[1744299818569,1.33889008,1506.0,1505.9,10.0292]
[1744299820473,0.00997008,1506.0,1505.9,11.35821]
[1744299820673,0.00997008,1506.0,1505.9,18.237]
[1744299820874,1.33889008,1506.0,1505.9,18.237]
[1744299821074,0.00997008,1506.0,1505.9,18.237]
[1744299821474,0.00997008,1506.0,1505.9,19.56601]
[1744299821677,0.00997008,1506.0,1505.9,18.237]
[1744299821877,0.00997008,1506.0,1505.9,19.56601]
[1744299822381,1.33889008,1506.0,1505.9,13.237]
[1744299822777,8.33233008,1506.0,1505.7,3.2078]
[1744299822969,8.33233008,1506.0,1505.6,9.7782]
[1744299822970,1.32918,1505.7,1505.6,9.7782]
[1744299823173,1.32945,1505.4,1505.3,0.00997008]
[1744299823369,3.32331,1505.6,1505.3,0.00997008]
[1744299823370,1.32943,1505.5,1505.3,0.00997008]
[1744299823671,3.2078,1505.9,1505.6,1.32926]
[1744299823878,0.00997008,1506.0,1505.8,3.2078]
[1744299824273,1.32901,1505.9,1505.8,3.2078]
[1744299824475,1.32916,1505.8,1505.5,3.2078]
[1744299824674,1.3291,1505.8,1505.7,3.2078]
[1744299824879,0.00997008,1506.0,1505.9,1.32901]
[1744299825081,0.00997008,1506.0,1505.9,4.53681]
[1744299825283,0.00997008,1506.0,1505.7,3.2078]
[1744299825475,0.00997008,1506.0,1505.9,4.53681]
[1744299825883,1.32858,1506.4,1506.0,3.32224]
[1744299826175,3.32146,1506.4,1506.2,3.2078]
[1744299826370,1.3288,1506.2,1506.0,4.53664]
[1744299826587,13.33834,1506.4,1506.0,3.2078]
[1744299826879,3.32122,1506.5,1506.1,1.32879]
[1744299827081,1.32874,1506.2,1506.1,9.9892]
[1744299827575,13.24312,1506.5,1506.1,18.31107]
[1744299827576,1.32851,1506.5,1506.1,18.31107]
[1744299827781,9.9219,1506.7,1506.4,3.2078]
[1744299827979,1.32865,1506.3,1506.2,3.2078]
[1744299828179,1.32874,1506.2,1506.1,3.2078]
[1744299828376,1.32883,1506.1,1506.0,0.00997008]
[1744299828782,4.53663,1506.1,1506.0,0.00997008]
[1744299828980,9.53663,1506.1,1506.0,0.00997008]
[1744299829176,3.32262,1505.9,1505.4,15.2156]
[1744299829488,1.32936,1505.5,1505.4,9.9892]
[1744299829673,13.24469,1505.8,1505.4,3.2078]
[1744299829881,1.32939,1505.5,1505.4,3.2078]
[1744299830181,1.32936,1505.5,1505.4,3.2078]
[1744299830771,0.00997008,1505.6,1505.4,3.2078]
[1744299830975,0.00997008,1505.6,1505.4,12.7612]
[1744299831181,1.32938,1505.5,1505.3,1.33944008]
[1744299831475,1.32943,1505.5,1505.3,3.21777008]
[1744299831681,1.32936,1505.5,1505.3,4.54729008]
[1744299831876,9.92267008,1505.6,1505.3,3.21777008]
[1744299832085,0.00997008,1505.6,1505.5,4.53716]
[1744299832273,1.33924008,1505.6,1505.5,3.2078]
[1744299832474,1.33924008,1505.6,1505.4,9.5534]
[1744299832475,1.32936,1505.5,1505.4,9.5534]
[1744299832685,1.32945,1505.4,1505.3,0.00997008]
[1744299833389,10.25097008,1505.6,1505.3,0.00997008]
[1744299833574,10.25097008,1505.6,1505.3,10.24107008]
[1744299833778,1.32945,1505.4,1505.3,0.00997008]
[1744299834881,9.53725,1505.4,1505.3,8e-08]
[1744299835580,3.3243,1505.1,1504.5,1.33019]
[1744299835783,3.2078,1505.1,1504.7,1.32998]
[1744299836084,10.241,1505.0,1504.7,3.2078]
[1744299836481,1.32993,1504.9,1504.7,3.2078]
[1744299836674,10.241,1505.0,1504.7,3.2078]
[1744299836879,10.241,1505.0,1504.7,3.21777008]
[1744299837390,1.32991,1504.9,1504.7,3.21777008]
[1744299837581,1.32997,1504.9,1504.7,3.21777008]
[1744299837778,10.241,1505.0,1504.7,3.21777008]
[1744299837981,3.2078,1505.3,1504.9,3.2078]
[1744299838181,3.32429,1505.1,1504.7,3.21777008]
[1744299838483,9.534,1505.0,1504.7,3.21777008]
[1744299838683,1.32994,1504.9,1504.7,4.54783008]
[1744299838883,9.534,1505.0,1504.7,3.21777008]
[1744299839089,1.32998,1504.8,1504.7,0.00997008]
[1744299840391,6.32998,1504.8,1504.7,0.00997008]
[1744299840593,10.83938,1504.8,1504.7,0.00997008]
[1744299840999,4.53773,1504.9,1504.7,1.34004008]
[1744299841204,6.53146,1505.4,1504.8,3.2078]
[1744299841397,6.53146,1505.4,1504.8,13.6419]
[1744299841398,3.2078,1505.2,1504.8,13.6419]
[1744299841604,1.32989,1504.9,1504.8,13.6419]
[1744299841806,1.32998,1504.8,1504.7,0.00997008]
[1744299841996,1.32992,1504.9,1504.7,1.33998008]
[1744299842197,1.32988,1505.0,1504.7,0.00997008]
[1744299842397,1.32998,1504.8,1504.7,0.00997008]
[1744299843205,6.32998,1504.8,1504.7,0.00997008]
[1744299843408,9.53778,1504.8,1504.7,8e-08]
[1744299843602,1.33078,1503.9,1503.8,10.3791]
[1744299843908,6.53434,1504.1,1503.7,4.53873]
[1744299844105,1.33086,1503.8,1503.7,3.2078]
[1744299844305,3.32725,1503.8,1503.4,3.2078]
[1744299844498,3.32695,1503.9,1503.3,10.3791]
[1744299844703,1.33131,1503.3,1503.2,3.2078]
[1744299845101,3.32783,1503.5,1503.2,3.2078]
[1744299845297,6.53546,1503.6,1503.1,10.38907008]
[1744299845497,1.33139,1503.2,1503.1,8e-08]
[1744299845905,6.33139,1503.2,1503.1,8e-08]
[1744299846102,1.33139,1503.2,1503.1,8e-08]
[1744299846302,3.32805,1503.4,1503.1,8e-08]
[1744299846303,1.33137,1503.3,1503.1,8e-08]
[1744299846501,3.2078,1503.2,1502.8,25.76955943]
[1744299846697,3.2078,1503.4,1503.1,1.33145]
[1744299846903,1.33131,1503.3,1502.8,28.97735943]
[1744299847102,1.33164,1503.0,1502.8,28.97735943]
[1744299847299,1.33162,1503.0,1502.8,25.76955943]
[1744299847510,1.33166,1502.9,1502.8,25.76955943]
[1744299847902,6.33166,1502.9,1502.8,22.33538943]
[1744299848099,6.33166,1502.9,1502.8,18.50105943]
[1744299848306,6.33166,1502.9,1502.8,16.39540943]
[1744299848612,6.33166,1502.9,1502.8,11.37022943]
[1744299848808,1.33166,1502.9,1502.8,11.37022943]
[1744299849112,6.33166,1502.9,1502.8,11.37022943]
[1744299849307,3.21777008,1503.0,1502.8,11.37022943]
[1744299849507,1.33175,1502.8,1502.7,0.00997008]
[1744299849806,4.53955,1502.8,1502.7,0.00997008]
[1744299850517,4.54937008,1503.0,1502.7,5.00997008]
[1744299850712,1.33175,1502.8,1502.7,0.00997008]
[1744299851112,10.1004,1502.9,1502.7,0.00997008]
[1744299851412,1.33175,1502.8,1502.7,0.00997008]
[1744299851612,10.1004,1502.9,1502.7,0.00997008]
[1744299851813,4.53955,1502.8,1502.7,0.00997008]
[1744299852308,4.53955,1502.8,1502.0,11.36312]
[1744299852309,3.33,1502.6,1502.0,4.8243]
[1744299852504,3.2078,1502.3,1501.6,4.8281]
[1744299852711,1.33241,1502.1,1501.9,1.33253]
[1744299852908,9.9362,1502.2,1501.7,13.2215]
[1744299853103,9.9362,1502.2,1501.8,1.33264]
[1744299853304,3.33134,1502.0,1501.5,3.2078]
[1744299853509,3.2078,1502.1,1501.8,0.00997008]
[1744299853711,1.33255,1501.9,1501.8,0.00997008]
[1744299853914,3.2078,1502.1,1501.8,1.34257008]
[1744299854117,0.00997008,1502.2,1502.0,1.33246]
[1744299854318,0.00997008,1502.2,1502.1,1.33237]
[1744299854612,0.00997008,1502.2,1502.1,4.54017]
[1744299854816,3.2078,1502.7,1502.1,9.54017]
[1744299855010,3.2078,1502.7,1502.3,1.33214]
[1744299855205,3.32985,1502.6,1502.2,10.5187]
[1744299855410,1.33219,1502.3,1502.2,10.5187]
[1744299855812,1.33238,1502.1,1501.9,1.33249]
[1744299856108,6.5383,1502.3,1501.9,10.5187]
[1744299856430,1.33246,1502.0,1501.9,10.5187]
[1744299856608,1.33244,1502.1,1501.9,11.85121]
[1744299856804,1.33255,1501.9,1501.8,0.00997008]
[1744299857704,4.54035,1501.9,1501.8,0.00997008]
[1744299857910,3.2078,1501.9,1501.8,10.33857008]
[1744299858110,9.8258,1502.3,1501.8,15.33857008]
[1744299858408,1.33253,1502.0,1501.8,10.33857008]
[1744299858608,3.2078,1502.2,1501.8,11.67112008]
[1744299858808,3.2078,1502.2,1501.5,3.2078]
[1744299859009,3.33094,1502.1,1501.7,10.3286]
[1744299859205,13.0336,1502.2,1501.7,10.3286]
[1744299859206,1.33255,1501.9,1501.7,10.3286]
[1744299859406,13.0336,1502.2,1501.7,10.3286]
[1744299859614,13.0336,1502.2,1501.7,13.5364]
[1744299859812,4.54005,1502.3,1502.1,1.33233]
[1744299860013,0.00997008,1502.4,1502.3,1.33219]
[1744299860221,1.33219,1502.3,1502.2,11.66081]
[1744299860412,0.00997008,1502.4,1502.3,1.33219]
[1744299860820,1.3317,1502.9,1502.8,1.33171]
[1744299861021,1.33182,1502.8,1502.4,16.28594]
[1744299861221,3.2078,1503.0,1502.5,3.33005]
[1744299861522,3.2078,1503.2,1502.8,3.32938]
[1744299861725,13.83507,1503.5,1502.9,1.33163]
[1744299861912,0.00997008,1503.2,1503.0,1.33155]
[1744299862220,0.00997008,1503.2,1503.1,1.33148]
[1744299862421,0.00997008,1503.2,1502.9,6.53694]
[1744299862724,4.72589825,1503.7,1503.1,3.2078]
[1744299862923,4.72589825,1503.7,1503.6,1.33104]
[1744299863426,6.97016945,1503.8,1503.7,1.33095]
[1744299863727,0.63608015,1503.8,1503.7,4.53875]
[1744299863923,0.00997008,1503.9,1503.8,1.33086]
[1744299864115,0.00997008,1503.9,1503.6,0.00997008]
[1744299864321,0.00997008,1503.9,1503.6,9.91847008]
[1744299864521,1.33095,1503.7,1503.6,9.91847008]
[1744299864726,3.21777008,1503.9,1503.6,9.91847008]
[1744299865221,0.00997008,1503.9,1503.8,4.53866]
[1744299865418,0.00997008,1503.9,1503.8,3.2078]
[1744299865613,1.34081008,1503.9,1503.7,1.33093]
[1744299865818,1.33087,1503.8,1503.6,11.24944008]
[1744299866019,1.34078008,1503.9,1503.7,1.33092]
[1744299866226,0.00997008,1503.9,1503.8,11.23936]
[1744299866618,0.00997008,1503.9,1503.8,16.23936]
[1744299867120,1.34075008,1503.9,1503.8,9.9085]
[1744299867321,0.00997008,1503.9,1503.8,9.9085]
[1744299867524,1.34075008,1503.9,1503.8,9.9085]
[1744299868025,1.34075008,1503.9,1503.6,0.00997008]
[1744299868026,1.33093,1503.8,1503.6,0.00997008]
[1744299868226,0.00997008,1503.9,1503.6,0.00997008]
[1744299868227,3.33694008,1503.9,1503.6,0.00997008]
[1744299868413,1.33095,1503.7,1503.6,0.00997008]
[1744299868611,4.53875,1503.7,1503.6,0.00997008]
[1744299868824,1.34077008,1503.9,1503.7,1.33087]
[1744299869025,1.34077008,1503.9,1503.8,11.40676]
[1744299869026,0.00997008,1503.9,1503.8,11.40676]
[1744299869724,1.33016,1504.6,1504.3,1.33042]
[1744299870025,3.2078,1504.8,1504.2,3.2078]
[1744299870327,3.32518,1504.7,1504.3,10.4187]
[1744299870518,13.5687,1504.8,1504.3,10.4187]
[1744299870519,1.33026,1504.5,1504.3,10.4187]
[1744299870715,11.69112,1504.6,1504.3,11.74906]
[1744299870920,16.90408008,1504.6,1504.2,0.00997008]
[1744299871228,10.37087008,1504.6,1504.2,6.54397008]
[1744299871523,1.33032,1504.5,1504.3,10.4187]
[1744299871726,1.33027,1504.5,1504.3,10.4187]
[1744299871926,13.57867008,1504.6,1504.3,11.74909]
[1744299872122,13.57867008,1504.6,1504.3,10.4187]
[1744299872325,0.00997008,1504.6,1504.3,10.4187]
[1744299872527,0.00997008,1504.6,1504.5,4.53804]
[1744299872726,10.1376,1505.2,1505.0,1.32973]
[1744299872923,3.2078,1505.3,1505.1,1.32971]
[1744299873122,3.2078,1505.3,1504.9,13.2003]
[1744299873432,1.32941,1505.5,1505.3,1.32954]
[1744299873631,10.61582722,1505.7,1505.1,13.2003]
[1744299873817,3.2078,1505.3,1505.1,9.9925]
[1744299874018,3.21777008,1505.6,1505.2,4.54737008]
[1744299874326,10.1376,1505.5,1505.2,1.33956008]
[1744299874532,11.46701,1505.5,1505.2,1.33956008]
[1744299874826,0.00997008,1505.6,1505.4,1.32938]
[1744299875029,0.00997008,1505.6,1505.5,1.32936]
[1744299875228,0.00997008,1505.6,1505.5,11.32186]
[1744299875434,0.00997008,1505.6,1505.5,117.76886]
[1744299875817,0.00997008,1505.6,1505.5,123.01746]
[1744299876227,0.00997008,1505.6,1505.5,118.01746]
[1744299876527,0.00997008,1505.6,1505.5,112.76886]
[1744299877021,3.3213,1506.5,1505.6,0.6648]
[1744299877216,1.32873,1506.3,1506.0,1.32888]
[1744299877420,1.32883,1506.1,1505.6,3.2078]
[1744299877617,1.32915,1505.8,1505.3,3.2078]
[1744299877821,1.32919,1505.7,1505.6,3.2078]
[1744299878022,6.52946,1506.3,1505.6,3.2078]
[1744299878226,3.2078,1506.3,1505.8,3.2078]
[1744299878427,3.2078,1506.3,1505.8,4.53681]
[1744299878723,4.53676,1506.0,1505.7,11.0711]
[1744299878922,3.32191,1506.2,1505.8,3.2078]
[1744299879228,6.52993,1506.1,1505.6,3.2078]
[1744299879427,1.32913,1505.8,1505.6,3.2078]
[1744299879629,1.32901,1505.9,1505.6,3.2078]
[1744299879932,6.52901,1506.5,1505.8,3.2078]
[1744299880123,1.32883,1506.1,1505.9,11.56358]
[1744299880320,3.2078,1506.3,1505.8,4.53688]
[1744299880526,1.32879,1506.2,1506.0,1.32887]
[1744299880726,1.32916,1505.8,1505.6,1.32924]
[1744299881026,3.32231,1506.0,1505.5,101.38797008]
[1744299881027,6.53034,1505.9,1505.5,101.38797008]
[1744299881331,1.3291,1505.8,1505.5,104.59577008]
[1744299881530,1.32921,1505.7,1505.5,105.92510008]
[1744299881724,1.32927,1505.6,1505.5,0.00997008]
[1744299882141,6.32927,1505.6,1505.5,0.00997008]
[1744299882437,1.32967,1505.2,1505.0,1.32974]
[1744299882633,16.97177,1505.5,1504.9,12.9537]
[1744299882824,1.32965,1505.2,1505.0,4.53752]
[1744299883135,1.32971,1505.1,1505.0,3.2078]
[1744299883430,0.00997008,1505.2,1505.0,3.2078]
[1744299883626,0.00997008,1505.2,1505.1,1.32971]
[1744299884134,1.3298,1505.0,1504.9,0.00997008]
[1744299885328,6.3298,1505.0,1504.9,0.00997008]
[1744299885935,6.3298,1505.0,1504.9,8e-08]
[1744299885936,15.9055,1505.0,1504.9,8e-08]
[1744299886323,1.32978,1505.1,1504.9,1.32986008]
[1744299886525,9.58567008,1505.2,1505.0,1.32976]
[1744299886819,9.58567008,1505.2,1504.9,3.20780008]
[1744299886820,0.00997008,1505.2,1505.1,4.53751]
[1744299887224,0.00997008,1505.2,1505.1,9.53751]
[1744299887630,0.00997008,1505.2,1505.1,3.2078]
[1744299887831,0.00997008,1505.2,1505.1,4.53751]
[1744299888235,1.33960008,1505.2,1505.1,3.2078]
[1744299888531,0.00997008,1505.2,1504.9,4.53767008]
[1744299888831,1.3298,1505.0,1504.9,8e-08]
[1744299889336,1.33055,1504.2,1504.0,27.71162]
[1744299889530,3.32532,1504.7,1504.3,1.33041]
[1744299889738,1.33037,1504.4,1504.2,3.2078]
[1744299889928,1.33026,1504.5,1504.2,3.2078]
[1744299890130,1.33026,1504.5,1504.4,3.2078]
[1744299890530,0.00997008,1504.5,1504.3,3.2078]
[1744299890732,0.00997008,1504.5,1504.2,0.00997008]
[1744299890733,1.33042,1504.3,1504.2,0.00997008]
[1744299891437,1.33069,1504.0,1503.9,3.2078]
[1744299891639,9.9176,1504.2,1503.9,3.2078]
[1744299891835,16.4517,1504.2,1503.7,13.3277]
[1744299892035,3.2078,1504.0,1503.5,3.2078]
[1744299892235,6.53531,1503.7,1502.8,3.2078]
[1744299892440,6.53531,1503.7,1503.1,1.33146]
[1744299892441,9.9176,1503.6,1503.1,1.33146]
[1744299892638,9.9176,1503.6,1503.2,3.2078]
[1744299892833,1.34113008,1503.5,1503.2,4.54913008]
[1744299893142,1.33131,1503.3,1503.2,0.00997008]
[1744299893340,3.32872,1503.1,1502.3,3.2078]
[1744299893642,3.2078,1503.3,1502.1,18.4899863]
[1744299893643,1.33228,1502.2,1502.1,18.4899863]
[1744299893844,1.33246,1502.0,1501.7,25.46629366]
[1744299894036,1.33246,1502.0,1501.7,28.67409366]
[1744299894436,10.4341,1502.1,1501.9,28.61210671]
[1744299894437,0.00997008,1502.1,1501.9,28.61210671]
[1744299894637,0.00997008,1502.1,1502.0,4.54026]
[1744299894844,4.8353,1503.1,1502.0,126.3538389]
[1744299895140,11.76572,1503.0,1502.7,1.33184]
[1744299895339,11.76572,1503.0,1502.7,4.53963]
[1744299895643,1.3318,1502.8,1502.4,3.2078]
[1744299895843,13.6419,1503.0,1502.7,0.00997008]
[1744299896140,1.33175,1502.8,1502.7,0.00997008]
[1744299896542,10.44407008,1503.0,1502.7,0.00997008]
[1744299896741,1.33168,1502.9,1502.7,0.00997008]
[1744299896945,11.77568008,1503.0,1502.7,11.28210008]
[1744299897249,0.00997008,1503.0,1502.8,4.53947]
[1744299897538,1.33175,1502.8,1502.7,0.00997008]
[1744299898043,4.53955,1502.8,1502.7,8e-08]
[1744299898339,9.53955,1502.8,1502.7,8e-08]
[1744299898537,6.33175,1502.8,1502.7,8e-08]
[1744299898736,1.33175,1502.8,1502.7,8e-08]
[1744299899137,1.33169,1502.9,1502.7,8e-08]
[1744299899344,10.3572,1502.9,1502.7,1.33181008]
[1744299899541,10.3572,1502.9,1502.4,3.2078]
[1744299899842,1.33215,1502.4,1502.2,10.1687]
[1744299900039,3.32994,1502.6,1502.2,10.1687]
[1744299900239,3.2078,1502.3,1501.9,3.2078]
[1744299900546,3.33122,1502.0,1501.3,3.2078]
[1744299900846,16.18918,1501.9,1501.4,3.2078]
[1744299901041,0.00997008,1501.8,1501.7,4.54048]
[1744299901248,0.00997008,1501.8,1501.7,17.24548]
[1744299901439,3.2078,1502.7,1502.4,1.33207]
[1744299901639,3.33005,1502.5,1501.9,3.2078]
[1744299901833,12.98015,1502.4,1501.7,3.2078]
[1744299902147,12.98015,1502.4,1501.9,3.2078]
[1744299902338,3.33071,1502.2,1501.6,13.3765]
[1744299902643,9.6498,1502.4,1501.6,3.2078]
[1744299902644,9.6498,1502.1,1501.6,3.2078]
[1744299902843,0.00997008,1502.1,1502.0,4.54026]
[1744299903247,1.34234008,1502.1,1502.0,3.2078]
[1744299903947,1.33264,1501.8,1501.7,0.00997008]
[1744299904645,3.33231,1501.5,1501.1,3.2078]
[1744299904848,10.2097,1501.4,1500.9,18.3745]
[1744299905149,1.33326,1501.1,1501.0,3.2078]
[1744299905347,1.33323,1501.2,1501.0,1.33333]
[1744299905538,11.54275,1501.4,1501.1,3.2078]
[1744299905744,1.33308,1501.3,1501.2,10.0249]
[1744299905943,0.00997008,1501.4,1501.2,10.0249]
[1744299906143,0.00997008,1501.4,1501.3,4.54088]
[1744299906348,0.00997008,1501.4,1501.2,10.0249]
[1744299906553,1.3332,1501.2,1501.0,4.54111]
[1744299906847,1.33335,1501.0,1500.9,0.00997008]
[1744299907045,3.2078,1501.0,1500.2,3.2078]
[1744299907241,3.33478,1500.4,1500.0,1.32197]
[1744299907445,3.33434,1500.6,1498.9,0.49442033]
[1744299907446,1.33451,1499.7,1499.4,4.54253]
[1744299907642,3.2078,1499.9,1499.2,3.2078]
[1744299907846,1.33486,1499.3,1499.2,3.2078]
[1744299908049,6.54447,1499.6,1498.9,3.2078]
[1744299908249,6.54447,1499.6,1499.0,9.6412]
[1744299908250,1.33504,1499.1,1499.0,9.6412]
[1744299908448,0.01000434,1499.4,1499.1,0.01000434]
[1744299908744,0.01000434,1499.4,1499.3,1.33486]
[1744299908945,0.01000434,1499.4,1499.3,4.54266]
[1744299909338,0.01000434,1499.4,1499.3,9.54266]
[1744299909538,0.01000434,1499.4,1499.1,0.01000434]
[1744299909742,1.33495,1499.2,1499.1,4.34e-06]
[1744299909940,4.54275,1499.2,1499.1,4.34e-06]
[1744299910150,17.6185197,1499.2,1498.0,3.2078]
[1744299910349,1.33602,1498.0,1497.9,25.46629366]
[1744299910751,6.33602,1498.0,1497.9,25.46629366]
[1744299910949,1.33637,1497.6,1497.5,12.64964176]
[1744299911149,4.54417,1497.6,1497.5,10.76858176]
[1744299911441,1.3067598,1497.2,1497.1,33.40737021]
[1744299911645,7.17416808,1497.6,1497.2,6.67841059]
[1744299911847,1.33646,1497.5,1497.4,0.00672666]
[1744299912047,0.133547,1497.6,1497.4,0.00672666]
[1744299912349,9.4107197,1498.3,1497.4,0.00672666]
[1744299912350,6.54464,1499.5,1498.5,1.33552]
[1744299912552,0.47839249,1499.0,1498.5,3.2078]
[1744299912750,0.47839249,1499.0,1498.7,3.2078]
[1744299912951,0.47839249,1499.0,1498.5,3.2078]
[1744299913253,3.2078,1499.0,1498.5,3.2078]
[1744299913448,0.01000434,1498.9,1498.6,6.68841493]
[1744299913750,0.01000434,1498.9,1498.7,3.2078]
[1744299913950,0.01000434,1498.9,1498.8,1.3353]
[1744299914247,1.33528,1498.9,1498.7,6.67841059]
[1744299914449,3.2078,1498.8,1497.9,3.2078]
[1744299914647,3.2078,1498.5,1498.0,6.67841059]
[1744299914955,3.2078,1498.3,1498.0,6.67841059]
[1744299915155,3.2078,1498.4,1498.1,6.67841059]
[1744299915446,1.33569,1498.4,1498.0,6.67841059]
[1744299915651,3.2078,1498.5,1498.1,6.68841493]
[1744299915855,3.2078,1499.0,1498.3,3.2078]
[1744299916059,6.54686,1498.5,1498.1,0.01000434]
[1744299916348,3.3396,1498.2,1497.1,3.2078]
[1744299916555,3.2078,1497.6,1497.1,3.2078]
[1744299916748,3.2078,1497.0,1495.7,3.2078]
[1744299916944,1.33727,1496.6,1495.8,6.67841493]
[1744299917155,3.2078,1496.2,1495.8,16.52481493]
[1744299917349,9.5173,1496.5,1495.8,16.52481493]
[1744299917350,12.7251,1496.5,1496.0,3.2078]
[1744299917553,3.2078,1496.1,1495.2,9.8464]
[1744299917751,10.8551,1496.0,1495.9,0.01000434]
[1744299917946,22.2726297,1496.0,1494.9,3.2078]
[1744299918150,12.7251,1496.0,1495.4,0.02997809]
[1744299918352,9.5173,1496.0,1495.4,0.02997809]
[1744299918550,3.34544,1495.6,1495.1,3.2078]
[1744299918854,3.2078,1495.3,1494.7,3.2078]
[1744299919052,9.595,1495.2,1494.7,5.15481493]
[1744299919256,3.2078,1495.6,1494.9,0.0299702]
[1744299919552,0.01000434,1495.1,1494.9,0.03669686]
[1744299919751,1.33802,1495.8,1495.0,5.15481493]
[1744299920058,9.4107197,1496.6,1495.0,5.15481493]
[1744299920059,1.33793,1495.9,1495.5,5.15481493]
[1744299920252,1.33798,1495.8,1495.7,2e-07]
[1744299920556,14.14078,1495.8,1495.7,5.15481493]
[1744299920748,12.8028,1495.8,1495.0,9.9731]
[1744299920948,3.2078,1495.5,1495.1,5.15481493]
[1744299921156,4.54584,1495.8,1495.6,0.01000434]
[1744299921457,3.2078,1496.3,1495.7,0.03002057]
[1744299921756,1.33798,1495.8,1495.7,5.1848355]
[1744299921953,1.33798,1495.8,1495.7,0.03002057]
[1744299922152,1.33798,1495.8,1495.6,0.01000434]
[1744299922153,3.34518,1495.7,1494.9,3.2078]
[1744299922452,1.30885983,1494.8,1494.7,3.2078]
[1744299922646,3.2078,1495.3,1494.7,3.2078]
[1744299922849,3.2078,1495.9,1494.9,3.2078]
[1744299923049,107.696,1497.1,1494.8,3.8409355]
[1744299923050,10.1964,1496.1,1495.3,3.2078]
[1744299923250,3.2078,1495.9,1495.3,3.2078]
[1744299923453,13.54079,1496.1,1495.6,0.04002451]
[1744299923454,1.33807,1495.7,1495.6,0.04002451]
[1744299923849,1.33852,1495.2,1495.0,101.862]
[1744299924054,1.33812,1495.7,1495.1,5.74619001]
[1744299924349,1.33823,1495.6,1495.1,2.53839001]
[1744299924656,0.01000434,1495.8,1495.3,0.03002017]
[1744299924852,0.01000434,1495.8,1495.2,3.2078]
[1744299925155,0.01000434,1495.8,1495.6,3.2078]
[1744299925357,0.01000434,1495.8,1495.7,111.7902]
[1744299925553,1.34798434,1495.8,1495.7,114.35861018]
[1744299925861,0.01000434,1495.8,1495.7,119.35861018]
[1744299926052,1.34798434,1495.8,1495.7,1.10880018]
[1744299926251,1.33825,1495.5,1495.4,6.66e-06]
[1744299926559,1.33823,1495.6,1495.5,1.10880018]
[1744299926766,1.33823,1495.6,1495.5,11.02202035]
[1744299927061,1.33823,1495.6,1495.5,16.02202035]
[1744299927461,1.33823,1495.6,1495.5,16.00142217]
[1744299927658,1.33823,1495.6,1495.5,6.11822217]
[1744299927856,0.01000434,1495.8,1495.5,5.03002017]
[1744299928062,0.01000434,1495.8,1495.7,1.33807]
[1744299928367,0.01000434,1495.8,1495.7,11.18857]
[1744299928557,0.01000434,1495.8,1495.7,16.18857]
[1744299928960,6.55115,1496.6,1495.7,0.6688]
[1744299928961,3.2078,1496.6,1495.7,0.6688]
[1744299929264,1.33825,1495.5,1495.4,6.66e-06]
[1744299929658,6.33825,1495.5,1495.4,6.66e-06]
[1744299929857,5.0,1495.5,1494.4,3.2078]
[1744299930058,1.30946087,1494.1,1494.0,109.965]
[1744299930254,19.6333197,1495.4,1494.0,8.027]
[1744299930255,1.3395,1494.2,1494.0,8.027]
[1744299930660,10.2226,1494.7,1494.0,8.2078]
[1744299930861,6.55381,1495.4,1494.4,3.2078]
[1744299931167,3.2078,1495.2,1494.2,0.01003982]
[1744299931459,9.4107197,1495.3,1493.6,4.8077]
[1744299931460,3.34854,1494.2,1493.6,4.8077]
[1744299931661,3.2078,1494.1,1493.6,4.8077]
[1744299931872,3.34899,1494.0,1493.4,3.2078]
[1744299932056,1.34013,1493.4,1493.3,5.2622]
[1744299932368,3.2078,1493.7,1493.3,10.29223913]
[1744299932564,1.35013982,1493.5,1493.3,5.29223913]
[1744299932868,1.34013,1493.4,1493.3,0.03003913]
[1744299933468,1.34019,1493.4,1493.3,0.06007826]
[1744299933667,0.01003982,1493.5,1493.3,5.06007826]
[1744299933668,1.35013982,1493.5,1493.3,5.06007826]
[1744299933870,1.35011982,1493.5,1493.4,9.5973]
[1744299934070,1.35011982,1493.5,1493.4,14.5973]
[1744299934267,0.01003982,1493.5,1493.4,14.5973]
[1744299934465,0.01003982,1493.5,1493.4,1.93136068]
[1744299934673,1.33962,1494.0,1493.4,0.62128704]
[1744299934868,3.2078,1494.3,1493.8,3.2078]
[1744299935072,1.3395,1494.1,1494.0,3.2078]
[1744299935271,3.2078,1494.4,1494.0,3.2078]
[1744299935462,1.33938,1494.3,1494.0,3.2078]
[1744299935665,1.33941,1494.3,1494.1,0.12019098]
[1744299935866,1.33941,1494.2,1494.1,0.12019098]
[1744299936268,5.80825758,1494.2,1494.1,0.12019098]
[1744299936569,1.3395,1494.1,1494.0,0.01003982]
[1744299936768,0.01003982,1494.3,1494.0,5.01003982]
[1744299936968,0.13377031,1495.1,1494.8,1.33882]
[1744299937165,6.55224,1496.1,1495.0,3.2078]
[1744299937469,3.34392,1496.3,1495.5,1.33823]
[1744299937667,3.34392,1496.3,1495.2,3.2078]
[1744299937668,3.34392,1496.3,1495.4,3.2078]